bitfinex-derivatives/quotes_ETHF0:USTF0_20251118
["timestamp","ask_amount","ask_price","bid_price","bid_amount"]
[1763454109449,0.73166828,3035.5,3035.0,0.2375]
[1763454109647,1.18181393,3036.2,3035.4,0.1414]
[1763454109944,1.91331436,3036.2,3035.4,0.1414]
[1763454110145,0.73150043,3036.1,3035.4,0.1414]
[1763454110354,0.73150043,3036.1,3034.8,0.1414]
[1763454110355,0.73150043,3036.0,3035.5,0.00493778]
[1763454110541,0.73150043,3035.9,3035.5,0.00493778]
[1763454110839,0.73150043,3035.8,3035.5,0.00493778]
[1763454111035,1.18181393,3035.9,3034.8,0.1414]
[1763454111242,1.18181393,3036.0,3034.8,0.1414]
[1763454111936,1.18181393,3035.9,3035.1,0.00493778]
[1763454112644,1.18181393,3035.8,3035.1,0.00493778]
[1763454112844,0.00784866,3036.1,3035.1,0.00493778]
[1763454112845,1.18181393,3035.9,3035.1,0.00493778]
[1763454113444,1.18181393,3035.8,3035.1,0.00493778]
[1763454113640,0.0124,3035.2,3035.1,0.00493778]
[1763454114453,0.0124,3035.2,3034.2,0.1414]
[1763454114842,0.0124,3035.2,3033.9,0.0030994]
[1763454115039,1.18181393,3035.1,3033.9,0.0030994]
[1763454115244,0.0124,3034.0,3033.9,0.0030994]
[1763454115649,0.00493778,3034.3,3033.9,0.0030994]
[1763454117250,0.00493778,3034.3,3034.2,0.1404]
[1763454117442,0.00493778,3034.3,3033.9,0.0030994]
[1763454118452,0.00493778,3034.3,3034.2,0.1404]
[1763454118948,0.00493778,3034.3,3033.9,0.0030994]
[1763454119151,0.0127,3033.7,3033.1,0.1414]
[1763454119345,0.01293778,3034.3,3033.1,0.1414]
[1763454120259,0.0771,3033.6,3033.4,0.00493778]
[1763454120447,0.0771,3033.6,3031.8,0.1404]
[1763454120648,1.18181393,3033.4,3031.8,0.1404]
[1763454120861,1.84019226,3033.6,3031.8,0.1404]
[1763454120862,1.569,3033.3,3031.8,0.1404]
[1763454121351,2.75081393,3033.3,3032.2,0.00494601]
[1763454121550,1.18181393,3033.3,3032.2,0.00494601]
[1763454121750,6.781,3033.2,3032.2,0.00494601]
[1763454122354,1.18181393,3033.2,3032.2,0.00494601]
[1763454122553,2.53,3033.1,3032.2,0.00494601]
[1763454123062,1.18181393,3033.8,3032.2,0.00494601]
[1763454123266,8.1,3033.3,3032.2,0.00494601]
[1763454123558,8.101,3033.2,3032.2,0.00494601]
[1763454125356,2.37501244,3034.3,3032.2,0.00494601]
[1763454125357,1.18181393,3034.1,3032.2,0.00494601]
[1763454125552,5.9597809,3034.0,3032.2,0.00494601]
[1763454125753,0.7287809,3033.9,3032.2,0.00494601]
[1763454127246,0.698,3034.0,3032.2,0.00494601]
[1763454127655,0.72902393,3033.9,3032.2,0.00494601]
[1763454128245,2.48602393,3033.8,3032.2,0.00494601]
[1763454128460,0.72902393,3033.7,3032.2,0.00494601]
[1763454128664,1.757,3033.8,3032.2,0.00494601]
[1763454129048,1.18964865,3034.3,3032.2,0.00494601]
[1763454129262,0.72963052,3034.2,3032.2,0.00494601]
[1763454129461,0.00783472,3034.3,3032.2,0.00494601]
[1763454129766,0.73739975,3034.3,3032.2,0.00494601]
[1763454130851,0.00783472,3034.3,3032.2,0.00494601]
[1763454131859,0.003,3034.2,3032.2,0.00494601]
[1763454132164,1.18181393,3033.3,3032.2,0.00494601]
[1763454132366,0.73003497,3033.2,3032.2,0.00494601]
[1763454132662,1.18181393,3033.9,3032.2,0.00494601]
[1763454132849,4.02611628,3033.8,3032.2,0.00494601]
[1763454133053,0.73111628,3033.7,3032.2,0.00494601]
[1763454133449,0.73111628,3033.6,3032.2,0.00494601]
[1763454133649,1.18181393,3033.9,3032.2,0.00494601]
[1763454133650,0.73111628,3033.5,3032.2,0.00494601]
[1763454133962,0.73111628,3033.4,3032.2,0.00494601]
[1763454134157,0.73197665,3033.3,3032.2,0.00494601]
[1763454134462,1.874,3033.7,3032.2,0.00494601]
[1763454134660,0.7320171,3033.6,3032.2,0.00494601]
[1763454135766,1.18181393,3033.3,3032.2,0.00494601]
[1763454135964,1.18181393,3033.0,3032.2,0.00494601]
[1763454136354,5.381,3032.9,3032.2,0.00494601]
[1763454136559,0.7320171,3032.8,3032.2,0.00494601]
[1763454136760,1.18181393,3032.7,3031.8,0.00320059]
[1763454137761,8.88296311,3032.6,3031.9,0.00331106]
[1763454137962,0.7320171,3032.5,3031.9,0.00331106]
[1763454139766,0.7320171,3032.4,3031.9,0.00331106]
[1763454140372,0.7320171,3032.3,3031.9,0.00331106]
[1763454140574,3.015,3032.5,3031.9,0.00331106]
[1763454140872,0.00494601,3032.6,3031.9,0.00331106]
[1763454141059,0.73710626,3032.6,3031.9,0.00331106]
[1763454143266,1.91892019,3032.6,3031.9,0.00331106]
[1763454143771,0.73216025,3032.5,3031.9,0.00331106]
[1763454143969,0.73216025,3032.4,3031.9,0.00331106]
[1763454144170,0.00494601,3032.6,3031.9,0.00331106]
[1763454144873,0.73909223,3032.6,3031.9,0.00331106]
[1763454145066,0.73414622,3032.5,3031.9,0.00331106]
[1763454145272,0.73414622,3032.4,3031.9,0.00331106]
[1763454145460,0.73414622,3032.3,3031.9,0.00331106]
[1763454145667,0.1519,3032.0,3031.9,0.00331106]
[1763454145869,0.15553697,3032.0,3031.9,0.00331106]
[1763454146478,0.00363697,3032.0,3031.9,0.00331106]
[1763454146782,0.15553697,3032.0,3031.9,0.00331106]
[1763454146975,0.88968319,3032.0,3031.9,0.00331106]
[1763454147177,0.1492,3031.9,3030.6,0.1404]
[1763454147381,1.18181393,3031.1,3029.1,1.72261779]
[1763454147575,1.18181393,3031.1,3028.9,1.72261779]
[1763454147576,1.18181393,3030.9,3028.9,1.72261779]
[1763454147883,1.18181393,3030.3,3028.8,0.1494]
[1763454148173,5.51814622,3030.2,3029.4,0.00324454]
[1763454148365,0.73414622,3030.1,3029.4,0.00324454]
[1763454148765,1.91596015,3030.1,3029.4,0.00324454]
[1763454149180,4.03414623,3030.0,3028.7,0.03301801]
[1763454149472,1.76309226,3029.8,3028.7,0.03301801]
[1763454149677,0.73414622,3029.7,3028.7,0.03301801]
[1763454149876,0.00494601,3030.2,3029.6,0.1494]
[1763454150276,0.00893852,3030.2,3029.6,0.1518352]
[1763454153381,0.00893852,3030.2,3029.6,0.0024352]
[1763454153877,0.00893852,3030.2,3029.6,0.1518352]
[1763454154482,0.00893852,3030.2,3029.6,0.0024352]
[1763454154690,0.00893852,3030.2,3029.6,0.1518352]
[1763454157872,0.73335203,3031.1,3029.6,0.1518352]
[1763454158182,1.707,3031.2,3029.6,0.1518352]
[1763454158788,1.18181393,3031.9,3029.6,0.1518352]
[1763454159079,0.00494601,3031.0,3030.9,0.2377]
[1763454160385,0.00494601,3031.0,3030.3,0.15434601]
[1763454162083,0.0716,3030.6,3029.6,0.0024352]
[1763454162278,1.18181393,3030.1,3029.6,0.0024352]
[1763454162581,1.91514862,3030.0,3029.6,3.52e-05]
[1763454162774,0.73333469,3029.9,3029.6,3.52e-05]
[1763454162975,0.73333469,3029.8,3029.6,3.52e-05]
[1763454163185,0.73333469,3029.7,3029.6,3.52e-05]
[1763454163379,2.94490619,3030.2,3028.2,0.1494]
[1763454163577,1.18181393,3029.9,3028.2,0.1494]
[1763454164280,0.73333469,3029.8,3028.2,0.1494]
[1763454164477,0.73333469,3029.7,3028.7,0.03641368]
[1763454164677,1.18181393,3030.3,3028.7,0.03641368]
[1763454164876,0.73487535,3030.2,3028.7,0.03641368]
[1763454165094,0.73487535,3030.1,3029.6,0.1494]
[1763454165279,1.18675994,3031.0,3029.6,3.4494]
[1763454165483,1.18675994,3031.0,3029.6,0.1494]
[1763454165484,0.73502391,3030.9,3029.6,0.1494]
[1763454165681,0.73502391,3030.8,3029.6,0.1494]
[1763454165879,0.73502391,3030.7,3029.6,0.1494]
[1763454166089,0.00494601,3031.0,3029.6,0.1494]
[1763454166290,0.74009103,3031.0,3029.6,0.1494]
[1763454167388,0.73521892,3030.9,3029.6,0.1494]
[1763454167582,0.00494601,3031.0,3030.3,0.1494]
[1763454168681,0.00494601,3031.0,3029.6,0.1494]
[1763454169392,1.18675994,3031.0,3029.6,0.1494]
[1763454169588,1.18181393,3030.9,3029.6,0.1494]
[1763454170090,0.73518274,3030.8,3029.6,0.1494]
[1763454170290,0.73518274,3030.8,3028.9,0.1494]
[1763454170291,0.73518274,3030.7,3028.9,0.1494]
[1763454170595,1.18181393,3030.3,3028.9,0.1494]
[1763454170797,1.91699667,3030.2,3028.9,0.1494]
[1763454171091,0.73518274,3030.1,3028.9,0.1494]
[1763454171295,0.73518274,3030.0,3028.9,0.1494]
[1763454171494,0.73518274,3029.9,3028.9,0.1494]
[1763454171797,1.18181393,3030.3,3028.9,0.1494]
[1763454172193,1.91801478,3030.2,3028.9,0.1494]
[1763454172502,1.91801478,3030.1,3028.9,0.1494]
[1763454172693,0.73620085,3030.0,3028.9,0.1494]
[1763454172993,0.73620085,3029.9,3028.9,0.1494]
[1763454173296,0.73620085,3029.8,3028.9,0.1494]
[1763454173491,0.73620085,3029.7,3029.6,0.1494]
[1763454173698,1.18181393,3030.5,3029.6,0.1494]
[1763454174288,0.73673218,3030.4,3029.6,0.1494]
[1763454174492,0.73673218,3030.3,3029.6,0.1494]
[1763454174689,1.76309226,3030.9,3029.6,0.1494]
[1763454174690,1.18181393,3030.9,3029.6,0.1494]
[1763454174998,1.91901422,3030.9,3029.6,0.1494]
[1763454175200,1.18181393,3030.7,3029.6,0.1494]
[1763454175391,0.73720029,3030.6,3029.6,0.1494]
[1763454175594,0.73720029,3030.5,3030.3,0.1494]
[1763454175793,0.00494601,3031.0,3030.3,0.1494]
[1763454176091,1.18181393,3030.9,3029.6,0.1494]
[1763454176290,1.91952834,3030.8,3029.6,0.1494]
[1763454176497,0.73771441,3030.7,3029.6,0.1494]
[1763454176698,0.73771441,3030.6,3029.6,0.1494]
[1763454176995,1.18181393,3030.3,3029.6,0.1494]
[1763454177298,1.91952834,3030.2,3029.6,0.1494]
[1763454177493,0.73771441,3030.1,3029.6,0.1494]
[1763454177800,0.73771441,3030.0,3029.6,0.1494]
[1763454177992,1.18181393,3030.4,3029.6,0.1494]
[1763454178599,0.73920642,3030.3,3029.6,0.1494]
[1763454178794,0.73920642,3030.2,3029.6,0.1494]
[1763454178996,1.18181393,3030.7,3030.3,0.1426]
[1763454179302,0.73919621,3030.6,3030.3,0.1426]
[1763454179499,0.73919621,3030.5,3030.3,0.1426]
[1763454179700,0.73919621,3030.4,3029.6,0.1494]
[1763454179902,0.73919621,3030.3,3029.6,0.1494]
[1763454180104,0.73919621,3030.2,3029.6,0.1494]
[1763454180291,1.18181393,3030.7,3030.3,0.1426]
[1763454180601,0.73922187,3030.6,3030.3,0.1426]
[1763454180798,0.00494601,3031.0,3030.3,0.1426]
[1763454183690,1.18181393,3031.6,3031.0,0.1426]
[1763454183890,0.0035181,3031.7,3031.0,0.14492352]
[1763454184398,1.81e-05,3031.7,3031.0,0.14492352]
[1763454184598,2.36717772,3033.0,3031.2,1.72261779]
[1763454184599,1.18181393,3033.0,3031.2,1.72261779]
[1763454184902,1.18181393,3033.4,3031.5,1.72261779]
[1763454185100,3.00988182,3033.6,3031.5,1.72261779]
[1763454185101,1.24678956,3033.6,3031.7,1.86521779]
[1763454185295,1.24678956,3033.6,3031.7,0.1426]
[1763454185496,1.24951412,3033.6,3031.7,0.1426]
[1763454186001,0.00494601,3033.0,3031.7,0.1426]
[1763454186411,0.00494601,3033.0,3032.4,0.1426]
[1763454186702,0.00494601,3033.0,3031.7,0.1426]
[1763454186902,1.18181393,3032.8,3031.0,0.14986953]
[1763454187104,1.18181393,3032.9,3031.0,0.14986953]
[1763454187402,0.00494601,3033.0,3031.0,0.14986953]
[1763454187599,1.18675994,3033.0,3031.0,0.14986953]
[1763454188203,0.00494601,3033.0,3031.0,0.14986953]
[1763454189800,0.32594601,3033.0,3031.0,0.14986953]
[1763454190612,0.32594601,3033.0,3030.1,0.676]
[1763454190613,1.18181393,3032.8,3030.1,0.676]
[1763454190809,1.18181393,3032.5,3029.7,1.72261779]
[1763454191106,1.76309226,3032.7,3029.6,0.1426]
[1763454191107,1.18181393,3031.9,3029.6,0.1426]
[1763454191297,0.0713,3031.7,3029.6,0.1426]
[1763454191703,0.00494601,3031.0,3030.3,0.14754601]
[1763454191908,0.00832518,3031.0,3030.3,0.14754601]
[1763454192702,0.00832518,3031.0,3030.3,0.00494601]
[1763454193004,0.00832518,3031.0,3030.3,0.14754601]
[1763454194709,0.00832518,3031.0,3030.3,0.00494601]
[1763454194710,0.07602518,3031.0,3030.3,0.00494601]
[1763454194898,0.07602518,3031.0,3029.6,0.00242838]
[1763454194899,7.18181393,3030.9,3029.6,0.00242838]
[1763454195101,1.18181393,3030.7,3029.6,0.00242838]
[1763454195304,1.18181393,3030.9,3029.6,0.14502838]
[1763454195511,0.07602518,3031.0,3029.6,0.14502838]
[1763454196609,0.00832518,3031.0,3029.6,0.14502838]
[1763454196809,0.74004024,3031.0,3029.6,0.14502838]
[1763454197005,0.73171506,3030.9,3029.6,0.14502838]
[1763454197203,0.73171506,3030.8,3029.6,0.14502838]
[1763454197408,0.73171506,3030.7,3029.6,0.14502838]
[1763454197703,0.07112518,3031.0,3029.6,0.14502838]
[1763454198611,0.00832518,3031.0,3029.6,0.14502838]
[1763454198808,0.07112518,3031.0,3029.6,0.14502838]
[1763454199110,1.18181393,3030.8,3029.6,0.00242838]
[1763454199610,1.18181393,3030.8,3029.6,0.14992838]
[1763454199817,0.00832518,3031.0,3029.6,0.14992838]
[1763454200610,0.00832518,3031.0,3029.6,40.94992838]
[1763454200912,3.142,3031.7,3030.3,0.1475]
[1763454201807,0.73150507,3031.6,3030.3,0.1475]
[1763454202010,0.00494601,3031.3,3030.6,0.00494601]
[1763454202313,0.00494601,3031.3,3031.0,0.1475]
[1763454203300,0.00494601,3031.3,3031.0,3.4459]
[1763454203513,0.00494601,3031.3,3031.0,0.1475]
[1763454205414,0.73200131,3032.5,3031.0,0.1475]
[1763454205611,1.61081393,3033.0,3031.0,0.1475]
[1763454205917,0.73190628,3032.9,3031.0,0.1475]
[1763454206314,1.18181393,3032.6,3031.0,0.1475]
[1763454206618,0.00494601,3032.1,3031.0,0.1475]
[1763454208319,0.00494601,3032.1,3030.6,0.00494601]
[1763454208513,1.18675994,3032.1,3030.6,0.00494601]
[1763454208813,0.00494601,3032.1,3030.6,0.00494601]
[1763454210126,1.17991476,3031.9,3030.6,0.00494601]
[1763454210311,1.25121476,3031.7,3030.6,0.00494601]
[1763454210510,1.98400535,3031.7,3030.6,0.00494601]
[1763454210717,0.80409059,3031.7,3030.6,0.00494601]
[1763454211020,0.73279059,3031.6,3030.6,0.00494601]
[1763454211224,0.73279059,3031.5,3030.6,0.00494601]
[1763454211416,0.73279059,3031.4,3030.6,0.00494601]
[1763454211723,0.73279059,3031.3,3030.6,0.00494601]
[1763454211914,0.73279059,3031.2,3030.6,0.00494601]
[1763454212117,1.25121476,3031.7,3030.6,0.00494601]
[1763454212427,1.98400997,3031.7,3030.6,0.00494601]
[1763454213013,0.73279521,3031.6,3030.6,0.00494601]
[1763454213213,0.73279521,3031.5,3030.6,0.00494601]
[1763454213515,0.73279521,3031.4,3030.6,0.00494601]
[1763454213706,0.73279521,3031.3,3030.6,0.00494601]
[1763454213909,0.73416654,3031.2,3030.6,0.00494601]
[1763454214110,0.2351,3030.7,3030.6,0.00494601]
[1763454214306,2.193,3031.6,3030.6,0.14604601]
[1763454214507,0.73418618,3031.5,3030.6,0.14604601]
[1763454215116,0.73418618,3031.4,3030.6,0.14604601]
[1763454215325,1.17991476,3031.9,3030.6,0.14604601]
[1763454215519,1.91448879,3031.9,3030.6,0.14604601]
[1763454216222,1.91448879,3031.8,3030.6,0.14604601]
[1763454216425,0.73457403,3031.7,3030.6,0.14604601]
[1763454216626,0.73457403,3031.6,3030.6,0.14604601]
[1763454216825,0.73457403,3031.5,3030.6,0.14604601]
[1763454217022,0.73457403,3031.4,3030.6,0.14604601]
[1763454217224,0.73457403,3031.3,3030.6,0.14604601]
[1763454217423,1.17991476,3031.8,3030.6,0.14604601]
[1763454217631,0.73521806,3031.7,3030.6,0.14604601]
[1763454217929,0.73521806,3031.6,3030.6,0.14604601]
[1763454218116,0.73521806,3031.5,3030.6,0.14604601]
[1763454218319,0.73521806,3031.4,3031.2,0.1411]
[1763454218516,1.17991476,3031.9,3031.2,0.1411]
[1763454219324,1.91530624,3031.8,3031.2,0.1411]
[1763454219528,0.73539148,3031.7,3031.2,0.1411]
[1763454219719,0.73539148,3031.6,3031.2,0.1411]
[1763454219920,1.18486077,3032.1,3031.4,0.2355]
[1763454220219,1.18486077,3032.1,3031.9,0.2355]
[1763454220220,0.73574187,3032.0,3031.9,0.2355]
[1763454220425,0.00494601,3032.1,3032.0,0.2355]
[1763454220820,0.00494601,3032.1,3031.9,0.00250736]
[1763454221015,0.00494601,3032.1,3032.0,0.2355]
[1763454221219,0.00494601,3032.1,3031.9,0.00250736]
[1763454221419,0.0583,3032.0,3031.9,0.00250736]
[1763454222421,9.3559,3032.0,3031.2,0.1411]
[1763454222628,9.3559,3032.0,3030.6,0.14604601]
[1763454222629,1.91547096,3031.9,3030.6,0.14604601]
[1763454222823,1.91547096,3031.8,3030.6,0.14604601]
[1763454223030,4.89247096,3031.7,3030.6,0.14604601]
[1763454223228,0.7355562,3031.6,3030.6,0.14604601]
[1763454223424,0.7355562,3031.6,3030.6,0.14970616]
[1763454224933,0.7355562,3031.5,3030.6,0.14970616]
[1763454225231,0.33905858,3031.4,3030.6,0.14970616]
[1763454225432,1.17991476,3031.8,3030.6,0.14970616]
[1763454227624,1.17991476,3031.7,3030.6,0.14970616]
[1763454230025,1.17991476,3031.8,3030.6,0.14970616]
[1763454230329,1.17991476,3032.0,3031.2,0.1411]
[1763454231139,1.17991476,3031.8,3031.2,0.1411]
[1763454231424,1.17991476,3031.7,3030.6,0.14970616]
[1763454231629,1.76987214,3031.9,3030.6,0.14970616]
[1763454231630,1.17991476,3031.6,3030.6,0.14970616]
[1763454231828,1.17991476,3031.3,3030.6,0.14970616]
[1763454232132,1.17991476,3031.4,3030.6,0.14970616]
[1763454232333,1.17991476,3031.6,3030.6,0.14970616]
[1763454233029,1.17991476,3031.4,3030.6,0.14970616]
[1763454233241,1.17991476,3031.3,3030.6,0.14970616]
[1763454233427,1.17991476,3031.4,3030.6,0.14970616]
[1763454233828,1.17991476,3031.5,3030.6,0.14970616]
[1763454234833,1.17991476,3031.6,3030.6,0.14970616]
[1763454235132,0.78341196,3031.6,3031.5,0.2355]
[1763454235331,2.36477554,3032.1,3031.6,3.2984]
[1763454235332,1.61527554,3032.1,3031.6,3.2984]
[1763454235633,1.61527554,3032.1,3031.2,0.1411]
[1763454235634,0.146,3033.0,3031.7,5.6539144]
[1763454235832,0.146,3033.0,3032.2,1.18182214]
[1763454236033,0.146,3033.0,3032.3,1.18182214]
[1763454236221,0.146,3033.0,3032.1,1.18182214]
[1763454236427,0.00494601,3032.7,3032.1,1.18182214]
[1763454236632,0.00494601,3032.7,3032.3,0.88557878]
[1763454237833,0.00494601,3032.7,3032.4,0.88557878]
[1763454238031,0.00494601,3032.7,3032.3,0.88557878]
[1763454238233,0.1452,3032.4,3032.2,0.88557878]
[1763454238432,0.1452,3032.4,3032.0,0.89052479]
[1763454238930,0.1452,3032.4,3032.1,0.88557878]
[1763454239130,0.00494601,3032.7,3032.1,0.88557878]
[1763454240239,0.00494601,3032.7,3032.3,0.88557878]
[1763454240640,0.0583,3033.6,3032.4,0.88557878]
[1763454240833,0.0583,3033.6,3033.0,0.88557878]
[1763454241132,0.0583,3033.6,3032.9,0.88557878]
[1763454241344,0.1452,3033.1,3033.0,0.88557878]
[1763454241535,0.1452,3033.1,3032.4,0.88557878]
[1763454241731,0.15291338,3033.1,3032.4,0.88871421]
[1763454242136,0.15291338,3033.1,3032.5,0.88557878]
[1763454242434,0.0583,3033.6,3032.5,0.88557878]
[1763454242634,0.0583,3033.6,3032.6,0.88557878]
[1763454242835,0.0583,3033.6,3032.7,0.88557878]
[1763454243027,0.0583,3033.6,3032.8,0.88557878]
[1763454243229,0.1452,3033.1,3032.8,0.88557878]
[1763454243441,0.1452,3033.1,3032.6,0.88557878]
[1763454243640,0.1452,3033.1,3032.4,1.18495757]
[1763454243641,0.2272,3032.7,3032.5,0.88557878]
[1763454243837,0.3724,3032.4,3032.3,0.10870566]
[1763454244041,0.1452,3032.4,3032.0,0.00494601]
[1763454244346,0.1452,3031.8,3031.4,1.18182214]
[1763454244543,0.1452,3031.8,3031.2,1.18182214]
[1763454244932,0.1452,3032.4,3031.2,1.18182214]
[1763454244933,0.1452,3032.4,3031.2,1.18437992]
[1763454245136,0.1452,3032.4,3031.3,1.18182214]
[1763454245337,0.1452,3032.4,3031.4,1.18182214]
[1763454245536,0.1452,3032.4,3031.6,0.00494601]
[1763454246641,0.14791766,3033.1,3031.6,0.00494601]
[1763454249144,0.1452,3031.8,3031.6,0.00494601]
[1763454249941,0.2272,3031.7,3031.6,0.00494601]
[1763454250337,0.1452,3031.8,3031.6,0.00494601]
[1763454252143,0.2272,3031.7,3031.6,0.00494601]
[1763454252644,0.1452,3031.8,3031.6,0.00494601]
[1763454255037,0.1452,3031.8,3031.6,1.77767923]
[1763454255546,0.1452,3032.4,3031.7,3.2984]
[1763454255849,0.1452,3032.4,3031.9,1.17737666]
[1763454256252,0.1452,3032.4,3031.8,1.17737666]
[1763454256547,0.14791766,3033.1,3031.6,1.18232267]
[1763454256952,0.14791766,3033.1,3031.7,1.17737666]
[1763454257351,0.14791766,3033.1,3031.9,1.17737666]
[1763454258052,0.1452,3032.4,3031.9,1.17737666]
[1763454259451,0.14791766,3033.1,3031.8,1.77273322]
[1763454259452,0.14791766,3033.1,3032.0,1.17737666]
[1763454259655,0.14791766,3033.1,3032.5,1.17737666]
[1763454259853,0.14791766,3033.1,3032.8,1.17737666]
[1763454261052,0.14791766,3033.1,3032.5,1.17737666]
[1763454261550,0.14791766,3033.1,3032.6,1.17737666]
[1763454263146,0.14791766,3033.1,3032.7,1.17737666]
[1763454263547,0.00271766,3033.1,3032.7,1.17737666]
[1763454263746,0.00271766,3033.1,3032.6,1.77273322]
[1763454263747,0.00271766,3033.1,3032.8,1.17737666]
[1763454263950,0.00271766,3033.1,3032.9,1.17737666]
[1763454264251,0.00271766,3033.1,3033.0,1.17737666]
[1763454264456,0.0583,3033.6,3032.9,1.77273322]
[1763454264652,0.0583,3033.6,3033.3,1.17743622]
[1763454264848,0.0583,3033.6,3033.4,5.06643622]
[1763454265443,0.00388049,3033.6,3033.5,3.889]
[1763454265648,0.00388049,3033.6,3033.5,7.185]
[1763454265855,0.00388049,3033.6,3033.5,5.06643622]
[1763454266255,0.00388049,3033.6,3033.5,3.889]
[1763454266755,2.15199483,3035.3,3033.5,3.889]
[1763454266756,1.56386906,3035.3,3033.5,3.889]
[1763454266956,0.382,3035.3,3033.7,1.17652183]
[1763454267758,0.00329732,3034.6,3033.7,1.17652183]
[1763454267953,0.00329732,3034.6,3033.6,5.06552183]
[1763454270353,0.1396,3034.2,3033.6,3.889]
[1763454270550,0.1396,3034.2,3033.4,0.0032379]
[1763454270551,0.1396,3034.2,3033.4,5.06875973]
[1763454270857,0.1396,3034.2,3033.6,1.17652183]
[1763454271052,0.1396,3034.2,3033.8,1.17652183]
[1763454271452,0.1396,3034.2,3033.5,1.17652183]
[1763454271758,0.1396,3033.6,3033.4,0.0032379]
[1763454273260,0.2329,3033.5,3033.4,0.0032379]
[1763454274166,0.1396,3033.6,3033.4,0.0032379]
[1763454275658,0.2329,3033.5,3033.4,0.0032379]
[1763454276562,0.1396,3033.6,3033.2,0.00494601]
[1763454276563,0.2329,3033.3,3033.2,0.00494601]
[1763454277661,0.2329,3033.3,3033.2,0.00745275]
[1763454279558,0.1396,3033.6,3033.2,0.00745275]
[1763454280457,0.1396,3033.6,3033.4,1.17652183]
[1763454280963,0.1396,3033.6,3033.2,0.00745275]
[1763454282263,0.2329,3033.3,3033.2,0.00745275]
[1763454283358,0.1396,3033.6,3033.2,0.00745275]
[1763454283759,0.1396,3033.6,3033.3,1.17652183]
[1763454284358,0.1396,3033.6,3033.4,1.17652183]
[1763454284560,0.2329,3033.5,3033.4,1.17652183]
[1763454284759,0.1396,3033.6,3033.2,1.78018597]
[1763454284760,0.2329,3033.3,3033.2,0.00745275]
[1763454290768,0.1396,3033.6,3033.2,0.00745275]
[1763454291068,0.1396,3033.6,3033.3,1.17652183]
[1763454291270,0.1396,3033.6,3033.5,1.77273322]
[1763454292276,0.3725,3033.6,3033.5,1.77273322]
[1763454293469,0.2329,3033.5,3033.4,1.77273322]
[1763454293669,0.2329,3033.4,3033.3,1.77273322]
[1763454293871,0.2329,3033.3,3033.2,1.78018597]
[1763454296468,0.2329,3033.3,3033.2,1.19084694]
[1763454296660,1.18186906,3034.1,3033.2,0.00745275]
[1763454296860,0.2329,3033.3,3033.2,0.00745275]
[1763454297469,0.2329,3033.3,3033.2,1.19084694]
[1763454297673,0.2329,3033.3,3033.2,1.19081305]
[1763454297875,0.2329,3033.3,3033.2,0.00745275]
[1763454299367,0.2329,3033.3,3033.2,1.78018597]
[1763454299571,0.2329,3033.3,3033.2,0.00745275]
[1763454299769,0.2329,3033.3,3033.2,1.19086505]
[1763454300272,0.2329,3033.3,3033.2,0.44186505]
[1763454300566,0.227,3033.1,3033.0,1.77273322]
[1763454300763,0.371,3033.0,3032.9,1.77273322]
[1763454301367,0.371,3033.0,3031.9,4.12355021]
[1763454301368,0.227,3032.4,3032.1,2.3563144]
[1763454301565,0.23091498,3032.4,3032.1,0.00273196]
[1763454301765,0.227,3032.2,3032.1,0.00273196]
[1763454302270,0.227,3032.2,3032.1,0.23083196]
[1763454302574,0.00391498,3032.4,3032.1,0.23083196]
[1763454302776,0.227,3032.3,3032.2,1.77722181]
[1763454303283,0.227,3032.2,3032.1,1.77995377]
[1763454303466,0.227,3032.2,3032.1,0.00273196]
[1763454304391,0.00391498,3032.4,3032.1,0.23083196]
[1763454304674,0.23091498,3032.4,3032.3,0.88720956]
[1763454306173,0.227,3032.3,3032.2,0.88720956]
[1763454306874,0.12755472,3033.0,3032.1,0.00273196]
[1763454307077,0.12755472,3033.0,3032.3,0.88659366]
[1763454307376,0.12755472,3033.0,3032.2,0.88659366]
[1763454307674,0.13148837,3033.0,3032.2,0.88659366]
[1763454307877,4.48276638,3032.9,3031.6,1.10568607]
[1763454308080,1.18186906,3032.3,3031.5,0.1156]
[1763454308272,1.18186906,3032.4,3031.5,0.1156]
[1763454308576,5.19186906,3032.6,3031.5,0.1156]
[1763454308775,5.19186906,3032.6,3031.5,0.1182476]
[1763454309081,5.19186906,3032.6,3031.7,0.00494601]
[1763454310180,4.01,3032.6,3031.7,0.00494601]
[1763454313170,7.629,3032.8,3031.7,0.00494601]
[1763454313772,0.00329732,3032.9,3031.7,0.00494601]
[1763454315187,0.00329732,3032.9,3032.5,0.1403]
[1763454315778,0.00329732,3032.9,3032.8,0.2281]
[1763454316787,6.896,3034.1,3033.0,0.1403]
[1763454317983,0.00494601,3033.9,3033.2,0.00494601]
[1763454318589,0.00494601,3033.9,3033.2,4.601e-05]
[1763454320081,0.00494601,3033.9,3033.5,0.1468]
[1763454322180,0.00494601,3033.9,3033.8,0.2495]
[1763454322488,0.00494601,3033.9,3033.8,0.25244137]
[1763454323594,0.00494601,3033.9,3033.8,0.00294137]
[1763454325688,0.00494601,3033.9,3033.8,0.25244137]
[1763454326691,2.04,3035.1,3034.0,0.3963]
[1763454326889,1.25533279,3036.3,3034.0,0.3963]
[1763454326890,0.969,3035.2,3034.0,0.3963]
[1763454327391,1.17957215,3035.1,3034.0,0.3963]
[1763454327589,2.14857215,3035.2,3034.0,0.3963]
[1763454327791,0.0049,3034.9,3034.0,0.3963]
[1763454328190,0.0049,3034.9,3034.0,0.1468]
[1763454329188,1.17957215,3034.6,3033.8,0.00294137]
[1763454329390,1.77425822,3034.9,3033.2,4.601e-05]
[1763454329391,1.17957215,3034.3,3033.2,4.601e-05]
[1763454329592,1.17957215,3034.2,3033.2,4.601e-05]
[1763454329784,1.17957215,3033.9,3031.7,1.76939462]
[1763454329995,1.17957215,3033.7,3031.5,1.90989462]
[1763454330182,1.17957215,3033.4,3031.7,0.26656521]
[1763454330387,1.17957215,3033.2,3032.0,0.00418792]
[1763454330589,1.17957215,3032.9,3032.0,0.00418792]
[1763454330791,2.479,3032.8,3032.0,0.00418792]
[1763454330996,5.78154601,3032.8,3032.1,0.00494601]
[1763454331293,2.48394601,3032.8,3032.1,0.00494601]
[1763454331790,6.95988443,3032.8,3032.1,0.00494601]
[1763454331993,1.17833842,3032.6,3032.1,0.00494601]
[1763454332893,1.17833842,3032.7,3032.1,0.00494601]
[1763454333192,1.17833842,3032.6,3032.1,0.00494601]
[1763454333792,1.17833842,3032.7,3032.1,0.00494601]
[1763454335410,1.17833842,3032.5,3031.0,0.1405]
[1763454335695,1.17833842,3032.1,3031.0,0.1405]
[1763454336398,1.17833842,3032.2,3031.2,0.00494601]
[1763454337785,1.17833842,3031.9,3031.2,0.00494601]